bitfinex-derivatives/quotes_BNBF0:USTF0_20250413
["timestamp","ask_amount","ask_price","bid_price","bid_amount"]
[1744574023033,2.1841684,582.05,581.66,2.185]
[1744574023228,2.1841684,582.04,581.66,2.185]
[1744574023432,2.1841684,582.03,581.66,2.185]
[1744574023632,2.1841684,582.02,581.66,2.185]
[1744574023931,2.1841684,582.01,581.66,2.185]
[1744574024132,2.1841684,582.0,581.66,2.185]
[1744574024332,0.69420561,581.99,581.66,2.185]
[1744574024534,2.18439713,581.98,581.66,2.185]
[1744574024729,2.18439713,581.97,581.66,2.185]
[1744574024935,2.18439713,581.96,581.66,2.185]
[1744574025132,2.18439713,581.95,581.66,2.185]
[1744574025335,0.225,582.09,581.66,2.185]
[1744574025336,2.18439713,581.94,581.66,2.185]
[1744574025536,2.18439713,581.93,581.66,2.185]
[1744574025837,2.18439713,581.92,581.66,2.185]
[1744574026036,0.225,582.09,581.66,2.185]
[1744574026037,2.18455033,581.91,581.66,2.185]
[1744574026336,2.18455033,581.9,581.66,2.185]
[1744574026534,2.18455033,581.89,581.66,2.185]
[1744574026735,0.69420561,581.88,581.66,1.518]
[1744574027036,0.69441959,581.87,581.66,1.518]
[1744574027237,2.18483723,581.86,581.66,1.518]
[1744574027435,2.18483723,581.85,581.66,1.518]
[1744574027632,2.18478864,581.84,581.66,1.518]
[1744574027833,0.694371,581.83,581.66,1.518]
[1744574028035,0.69438258,581.82,581.66,1.077]
[1744574028232,0.225,582.09,581.66,0.438]
[1744574028436,2.1848452,582.08,581.66,0.438]
[1744574028637,2.1848452,582.07,581.66,0.438]
[1744574028839,2.1848452,582.06,581.66,0.438]
[1744574029038,2.1848452,582.05,581.66,0.438]
[1744574029238,2.1848452,582.04,581.63,0.633]
[1744574029435,2.1848452,582.03,581.63,0.633]
[1744574029643,2.1848452,582.02,581.63,0.633]
[1744574029837,2.1848452,582.01,581.63,0.633]
[1744574030036,2.1848452,582.0,581.63,0.633]
[1744574030240,2.1848452,581.99,581.63,0.633]
[1744574030438,2.1848452,581.98,581.63,0.633]
[1744574030646,2.1848452,581.97,581.63,0.633]
[1744574030942,2.1848452,581.96,581.63,0.633]
[1744574031244,2.1848452,581.95,581.63,0.633]
[1744574031443,2.1848452,581.94,581.63,0.633]
[1744574031639,2.1848452,581.93,581.63,0.633]
[1744574031844,2.1848452,581.92,581.63,0.633]
[1744574032046,2.1848452,581.91,581.63,0.633]
[1744574032244,2.1848452,581.9,581.63,0.633]
[1744574032445,2.1848452,581.89,581.63,0.633]
[1744574032645,2.1848452,581.88,581.63,0.633]
[1744574032838,2.1848452,581.87,581.63,0.633]
[1744574033042,2.18533417,581.86,581.63,0.633]
[1744574033243,2.18533417,581.85,581.63,0.633]
[1744574033442,2.18533417,581.84,581.63,0.633]
[1744574033645,2.18533417,581.83,581.63,0.633]
[1744574033842,2.18533417,581.82,581.63,0.633]
[1744574034046,2.18533417,581.81,581.63,0.633]
[1744574034344,2.18533417,581.8,581.63,0.633]
[1744574034545,2.18533417,581.79,581.63,0.633]
[1744574034846,2.18533417,581.78,581.63,0.633]
[1744574035046,2.18533417,581.77,581.63,0.633]
[1744574035348,2.18533417,581.76,581.63,0.633]
[1744574035540,2.1849001,581.75,581.63,0.633]
[1744574035746,0.69442285,581.74,581.63,0.633]
[1744574036045,0.225,582.09,581.63,0.633]
[1744574036245,2.18507204,582.08,581.63,0.633]
[1744574036542,2.18507204,582.07,581.63,0.633]
[1744574036742,2.18507204,582.06,581.63,0.633]
[1744574037045,2.18507204,582.05,581.63,0.633]
[1744574037245,2.18507204,582.04,581.62,0.547]
[1744574037446,2.18507204,582.03,581.62,0.547]
[1744574037646,2.18507204,582.02,581.62,0.547]
[1744574037941,2.18507204,582.01,581.62,0.547]
[1744574038146,2.18507204,582.0,581.62,0.547]
[1744574038350,2.18507204,581.99,581.62,0.547]
[1744574038550,2.18507204,581.98,581.62,0.547]
[1744574038749,2.18507204,581.97,581.62,0.547]
[1744574038949,2.18507204,581.96,581.62,0.547]
[1744574039150,2.18507204,581.95,581.62,0.547]
[1744574039449,2.18507204,581.94,581.62,0.547]
[1744574039748,2.18507204,581.93,581.62,0.547]
[1744574039950,2.18507204,581.92,581.62,0.547]
[1744574040151,2.18507204,581.91,581.62,0.547]
[1744574040446,2.18507204,581.9,581.62,0.547]
[1744574040650,2.18507204,581.89,581.62,0.547]
[1744574040847,2.18507204,581.88,581.62,0.547]
[1744574041049,2.18507204,581.87,581.62,0.547]
[1744574041248,2.18507204,581.86,581.62,0.547]
[1744574041450,2.18507204,581.85,581.62,0.547]
[1744574041651,2.18507204,581.84,581.62,0.547]
[1744574041950,2.18507204,581.83,581.62,0.547]
[1744574042151,2.18507204,581.82,581.62,0.547]
[1744574042354,2.18507204,581.81,581.54,0.606]
[1744574042546,2.18507204,581.8,581.54,0.606]
[1744574042751,2.18507204,581.79,581.54,0.606]
[1744574043046,2.18507204,581.78,581.54,0.606]
[1744574043251,2.18507204,581.77,581.54,0.606]
[1744574043451,2.18507204,581.76,581.54,0.606]
[1744574043749,2.18507204,581.75,581.54,0.606]
[1744574043950,2.18507204,581.74,581.54,0.606]
[1744574044151,2.18507204,581.73,581.54,0.606]
[1744574044354,0.69449683,581.72,581.54,0.606]
[1744574044655,0.225,582.09,581.54,0.606]
[1744574044855,2.18280867,582.08,581.54,0.606]
[1744574045054,2.18280867,582.07,581.54,1.202]
[1744574045253,2.18280867,582.06,581.54,1.202]
[1744574045452,2.18280867,582.05,581.54,1.202]
[1744574045654,2.18280867,582.04,581.54,1.202]
[1744574045854,2.18280867,582.03,581.54,1.202]
[1744574046054,2.18280867,582.02,581.54,1.202]
[1744574046250,2.18280867,582.01,581.54,1.202]
[1744574046452,2.18280867,582.0,581.54,1.202]
[1744574046756,2.18280867,581.99,581.54,1.202]
[1744574046951,2.18280867,581.98,581.54,1.202]
[1744574047156,2.18280867,581.97,581.54,1.202]
[1744574047455,2.18280867,581.96,581.54,1.202]
[1744574047656,2.18280867,581.95,581.54,1.202]
[1744574047957,2.18284714,581.94,581.54,1.202]
[1744574048158,2.18284714,581.93,581.54,1.202]
[1744574048458,2.18284714,581.92,581.54,1.202]
[1744574048757,2.18284714,581.91,581.54,1.202]
[1744574048958,2.18284714,581.9,581.54,1.202]
[1744574049160,2.18284714,581.89,581.54,1.202]
[1744574049354,2.18284714,581.88,581.54,1.202]
[1744574049554,2.18284714,581.87,581.54,1.202]
[1744574049758,0.29923257,582.49,581.54,1.202]
[1744574049759,2.1825895,581.86,581.54,1.202]
[1744574049959,2.1825895,581.85,581.54,1.202]
[1744574050159,2.1825895,581.84,581.54,1.202]
[1744574050359,2.1825895,581.83,581.54,1.202]
[1744574050560,2.1825895,581.82,581.54,1.202]
[1744574050757,0.69371074,581.81,581.54,1.202]
[1744574050957,0.225,581.97,581.54,1.202]
[1744574051160,2.18294709,581.96,581.54,1.202]
[1744574051364,2.18294709,581.95,581.54,1.202]
[1744574051664,2.18285849,581.94,581.54,1.882]
[1744574051865,2.18285849,581.93,581.54,1.882]
[1744574052067,2.18285849,581.92,581.54,1.882]
[1744574052265,2.18285849,581.91,581.54,1.882]
[1744574052565,0.225,581.97,581.54,1.882]
[1744574052766,0.69392982,581.96,581.54,1.882]
[1744574052969,2.18330268,581.95,581.54,1.882]
[1744574053266,0.69392982,581.94,581.54,1.882]
[1744574053466,0.225,581.97,581.54,1.882]
[1744574061069,0.225,581.97,581.54,1.276]
[1744574061571,0.69454516,581.96,581.54,1.276]
[1744574061771,2.18756744,581.95,581.54,1.276]
[1744574061966,0.69528344,581.94,581.54,1.276]
[1744574062170,0.225,581.97,581.54,0.68]
[1744574062369,0.69532026,581.96,581.54,0.68]
[1744574062579,2.18768349,581.95,581.54,0.68]
[1744574062770,2.18768349,581.94,581.54,0.68]
[1744574062965,2.18768349,581.93,581.54,0.68]
[1744574063170,2.18768349,581.92,581.54,0.68]
[1744574063473,2.18840384,581.91,581.54,0.68]
[1744574063673,2.18840384,581.9,581.54,0.68]
[1744574063873,2.18840384,581.89,581.54,0.68]
[1744574064069,2.18840384,581.88,581.54,0.68]
[1744574064273,2.18825936,581.87,581.54,0.68]
[1744574064474,2.18825936,581.86,581.54,0.68]
[1744574064676,0.69550712,581.85,581.54,0.68]
[1744574064875,0.225,581.97,581.54,0.68]
[1744574065076,2.18910134,581.96,581.54,0.68]
[1744574065271,2.18910134,581.95,581.54,0.68]
[1744574065473,2.18910134,581.94,581.54,1.414]
[1744574065672,2.18910134,581.93,581.54,0.734]
[1744574065974,2.18910134,581.92,581.54,0.734]
[1744574066171,2.18910134,581.91,581.54,0.734]
[1744574066376,2.18910134,581.9,581.54,0.734]
[1744574066576,2.18910134,581.89,581.54,0.734]
[1744574066777,0.69577348,581.88,581.54,0.734]
[1744574066976,0.225,581.97,581.54,0.734]
[1744574067176,2.18993084,581.96,581.54,0.734]
[1744574067377,2.18993084,581.95,581.54,1.191]
[1744574067678,2.18993084,581.94,581.54,1.191]
[1744574067879,2.18993084,581.93,581.54,1.191]
[1744574068077,2.18993084,581.92,581.54,1.191]
[1744574068276,2.18993084,581.91,581.54,1.191]
[1744574068477,2.18993084,581.9,581.54,1.191]
[1744574068680,2.18993084,581.89,581.54,1.191]
[1744574068877,2.18993084,581.88,581.54,1.191]
[1744574069078,2.18993084,581.87,581.54,1.191]
[1744574069277,0.69603666,581.86,581.54,1.191]
[1744574069480,0.225,581.97,581.54,1.191]
[1744574069682,2.19118302,581.96,581.54,1.191]
[1744574069882,2.19118302,581.95,581.54,1.191]
[1744574070082,2.19118302,581.94,581.54,1.191]
[1744574070282,2.19118302,581.93,581.54,1.191]
[1744574070479,2.19118302,581.92,581.54,1.191]
[1744574070684,2.19118302,581.91,581.54,1.191]
[1744574070886,2.19118302,581.9,581.54,1.191]
[1744574071185,2.19118302,581.89,581.54,1.191]
[1744574071386,0.225,581.97,581.54,1.191]
[1744574071585,2.1926231,581.96,581.54,1.191]
[1744574071781,0.225,581.97,581.54,1.191]
[1744574072085,0.69698957,581.96,581.54,1.191]
[1744574072287,2.19329815,581.95,581.54,1.191]
[1744574072585,0.69709924,581.94,581.54,1.191]
[1744574072785,0.225,581.97,581.54,1.191]
[1744574072982,2.19327973,581.96,581.54,1.191]
[1744574073183,0.69709684,581.95,581.54,1.191]
[1744574073381,0.69725535,581.94,581.54,1.191]
[1744574073581,0.69723583,581.93,581.55,0.31580359]
[1744574073782,0.225,581.97,581.54,1.191]
[1744574073986,2.19369613,581.96,581.54,1.191]
[1744574074187,2.19369613,581.95,581.54,1.191]
[1744574074386,2.19369613,581.94,581.54,1.191]
[1744574074687,0.225,581.97,581.55,0.31579782]
[1744574076587,0.225,581.97,581.56,0.31572982]
[1744574076785,0.225,581.97,581.55,0.31572982]
[1744574076987,0.225,581.97,581.56,0.31572982]
[1744574077183,0.225,581.97,581.57,0.31572982]
[1744574077381,0.225,581.97,581.55,0.31572982]
[1744574077580,2.19507415,582.74,581.56,0.31572982]
[1744574077786,2.50318398,582.73,581.57,0.31572982]
[1744574078087,2.50318398,582.72,581.58,0.31572982]
[1744574078287,2.50318398,582.71,581.55,0.31572982]
[1744574078589,2.19507415,582.7,581.55,0.65963834]
[1744574078888,2.19507415,582.69,581.56,0.31572982]
[1744574079082,2.19507415,582.68,581.56,0.31572982]
[1744574079282,2.19507415,582.67,581.56,0.31572982]
[1744574079487,2.19507415,582.66,581.56,0.31572982]
[1744574079787,2.19507415,582.65,581.56,0.31572982]
[1744574080088,2.19507415,582.64,581.56,0.31572982]
[1744574080383,2.19507415,582.63,581.56,0.31572982]
[1744574080588,2.19507415,582.62,581.56,0.31572982]
[1744574080785,2.19507415,582.61,581.56,0.31572982]
[1744574080986,2.19507415,582.6,581.56,0.31572982]
[1744574081185,2.19507415,582.59,581.55,0.34390852]
[1744574081387,2.19507415,582.58,581.56,0.31565019]
[1744574081686,2.19178853,582.57,581.56,0.31565019]
[1744574081888,2.19178853,582.56,581.56,1.09265019]
[1744574082087,2.19178853,582.55,581.57,0.31565019]
[1744574082382,2.19178853,582.54,581.57,0.31565019]
[1744574082583,2.19178853,582.53,581.57,0.31565019]
[1744574082784,2.19178853,582.52,581.57,0.31565019]
[1744574082987,2.19178853,582.51,581.57,0.31565019]
[1744574083285,2.19178853,582.5,581.57,0.31565019]
[1744574083487,2.19178853,582.49,581.57,0.31565019]
[1744574083687,2.19178853,582.48,581.57,0.31565019]
[1744574083884,2.19178853,582.47,581.57,0.31565019]
[1744574084085,2.19178853,582.46,581.57,0.31565019]
[1744574084284,2.19178853,582.45,581.57,0.31565019]
[1744574084485,2.19178853,582.44,581.57,0.31565019]
[1744574084684,2.19178853,582.43,581.57,0.31565019]
[1744574084887,2.19178853,582.42,581.57,0.31565019]
[1744574085089,2.19178853,582.41,581.57,0.31565019]
[1744574085290,2.19178853,582.4,581.57,0.31565019]
[1744574085491,2.19178853,582.39,581.57,0.31565019]
[1744574085688,2.19178853,582.38,581.57,0.31565019]
[1744574085898,2.19178853,582.37,581.57,0.31565019]
[1744574086198,2.19178853,582.36,581.57,0.31565019]
[1744574086394,2.19178853,582.35,581.57,0.31565019]
[1744574086597,2.19178853,582.34,581.57,0.31565019]
[1744574086895,2.19178853,582.33,581.57,0.31565019]
[1744574087097,2.19178853,582.32,581.57,0.31565019]
[1744574087297,2.19178853,582.31,581.57,0.31565019]
[1744574087497,2.19178853,582.3,581.57,0.31565019]
[1744574087697,2.19178853,582.29,581.57,0.31565019]
[1744574087897,2.19178853,582.28,581.57,0.31565019]
[1744574088093,2.19178853,582.27,581.57,0.31565019]
[1744574088296,2.19178853,582.26,581.57,0.31565019]
[1744574088499,2.1864717,582.25,581.57,0.31565019]
[1744574088697,2.1864717,582.24,581.57,0.31565019]
[1744574088897,2.1864717,582.23,581.57,0.31565019]
[1744574089094,0.69492478,582.22,581.57,0.31565019]
[1744574089296,0.225,582.58,581.57,0.31565019]
[1744574089500,2.18629512,582.57,581.57,0.31565019]
[1744574089695,2.18629512,582.56,581.57,0.31565019]
[1744574089895,2.18629512,582.55,581.58,0.34389078]
[1744574090094,2.18629512,582.54,581.59,0.31565019]
[1744574090295,2.18629512,582.53,581.59,0.31565019]
[1744574090496,2.18629512,582.52,581.59,0.31565019]
[1744574090699,2.18629512,582.51,581.59,0.31565019]
[1744574090998,2.18629512,582.5,581.59,0.31565019]
[1744574091205,2.18629512,582.49,581.59,0.31565019]
[1744574091397,2.18629512,582.48,581.59,0.31565019]
[1744574091599,2.18629512,582.47,581.59,0.31565019]
[1744574091799,2.18629512,582.46,581.59,0.31565019]
[1744574092000,2.18570113,582.45,581.6,0.517]
[1744574092200,2.18570113,582.44,581.6,0.517]
[1744574092396,2.18570113,582.43,581.61,0.31565019]
[1744574092594,2.18570113,582.42,581.61,0.31565019]
[1744574092798,2.18570113,582.41,581.61,0.31565019]
[1744574093000,2.18570113,582.4,581.61,0.31565019]
[1744574093200,2.18570113,582.39,581.61,0.31565019]
[1744574093400,2.18570113,582.38,581.61,0.31565019]
[1744574093597,2.18570113,582.37,581.61,0.31565019]
[1744574093802,2.18570113,582.36,581.61,0.31565019]
[1744574093998,2.18570113,582.35,581.61,0.31565019]
[1744574094296,2.18570113,582.34,581.62,0.625]
[1744574094503,2.18570113,582.33,581.63,0.31565019]
[1744574094700,2.18570113,582.32,581.63,0.31565019]
[1744574094900,0.69427299,582.31,581.63,0.31565019]
[1744574095100,0.69427299,582.3,581.63,0.31565019]
[1744574095301,0.225,582.58,581.63,0.31565019]
[1744574095502,2.18371271,582.57,581.63,0.31565019]
[1744574095701,2.18371271,582.56,581.63,0.31565019]
[1744574095899,2.18371271,582.55,581.63,0.31565019]
[1744574096103,2.18371271,582.54,581.63,0.31565019]
[1744574096305,2.18371271,582.53,581.63,0.31565019]
[1744574096506,2.18371271,582.52,581.63,0.31565019]
[1744574096702,2.18371271,582.51,581.63,0.31565019]
[1744574096909,2.18371271,582.5,581.63,0.31565019]
[1744574097103,2.18371271,582.49,581.63,0.31565019]
[1744574097307,2.18359504,582.48,581.63,0.31565019]
[1744574097509,2.18359504,582.47,581.63,0.31565019]
[1744574097709,2.18359504,582.46,581.63,0.31565019]
[1744574098010,2.18359504,582.45,581.63,0.31565019]
[1744574098210,2.18359504,582.44,581.63,0.31565019]
[1744574098411,2.18359504,582.43,581.62,0.625]
[1744574098611,2.18359504,582.42,581.63,0.31562544]
[1744574098811,2.18359504,582.41,581.63,0.31562544]
[1744574099111,2.1834193,582.4,581.63,0.31562544]
[1744574099309,2.1834193,582.39,581.63,0.31562544]
[1744574099506,2.1834193,582.38,581.63,0.31562544]
[1744574099708,2.1834193,582.37,581.63,0.31562544]
[1744574099916,2.1834193,582.36,581.63,0.31562544]
[1744574100112,0.69394972,582.35,581.62,0.625]
[1744574100306,0.34321212,582.73,581.62,0.625]
[1744574100307,0.69394972,582.34,581.63,0.31562668]
[1744574100506,0.34321212,582.73,581.63,0.31562668]
[1744574100707,2.18350089,582.72,581.63,0.31562668]
[1744574100907,2.18350089,582.71,581.63,0.31562668]
[1744574101112,2.18350089,582.7,581.63,0.31562668]
[1744574101316,2.18350089,582.69,581.63,0.31562668]
[1744574101509,2.18350089,582.68,581.63,0.31562668]
[1744574101707,2.18350089,582.67,581.64,0.707]
[1744574101910,2.18350089,582.66,581.64,0.707]
[1744574102112,2.18350089,582.65,581.64,0.707]
[1744574102409,2.18350089,582.64,581.64,0.707]
[1744574102609,2.18350089,582.63,581.64,0.707]
[1744574102810,2.18350089,582.62,581.64,0.707]
[1744574103012,2.18350089,582.61,581.64,0.707]
[1744574103312,2.18350089,582.6,581.64,0.707]
[1744574103512,2.18350089,582.59,581.65,0.31567451]
[1744574103814,2.18350089,582.58,581.65,0.31567451]
[1744574104014,2.18350089,582.57,581.65,0.31567451]
[1744574104314,2.18350089,582.56,581.65,0.31567451]
[1744574104515,2.18350089,582.55,581.65,0.31567451]
[1744574104718,2.18350089,582.54,581.65,0.31567451]
[1744574104915,2.18350089,582.53,581.65,0.31567451]
[1744574105115,2.18350089,582.52,581.65,0.31567451]
[1744574105315,2.18350089,582.51,581.65,0.31567451]
[1744574105615,2.18350089,582.5,581.65,0.31567451]
[1744574105816,2.18350089,582.49,581.65,0.31567451]
[1744574106115,2.18350089,582.48,581.65,0.31567451]
[1744574106312,2.18350089,582.47,581.65,0.31567451]
[1744574106513,2.18350089,582.46,581.65,0.31567451]
[1744574106709,2.18350089,582.45,581.65,0.31567451]
[1744574106913,2.18350089,582.44,581.65,0.31567451]
[1744574107111,2.18350089,582.43,581.65,0.31567451]
[1744574107315,2.18350089,582.42,581.65,0.31567451]
[1744574107613,2.18350089,582.41,581.66,0.31567079]
[1744574107815,2.18350089,582.4,581.65,0.31567079]
[1744574108015,2.18350089,582.39,581.66,0.549]
[1744574108215,2.18350089,582.38,581.67,0.31567079]
[1744574108410,2.18350089,582.37,581.67,0.31567079]
[1744574108618,2.18350089,582.36,581.67,0.31567079]
[1744574108913,2.18350089,582.35,581.67,0.31567079]
[1744574109119,2.18350089,582.34,581.66,0.549]
[1744574109320,2.18350089,582.33,581.67,0.31568065]
[1744574109520,2.18350089,582.32,581.67,0.31568065]
[1744574109717,2.18350089,582.31,581.67,0.31568065]
[1744574109920,2.18350089,582.3,581.67,0.31568065]
[1744574110120,2.18350089,582.29,581.67,0.31568065]
[1744574110319,2.18350089,582.28,581.67,0.31568065]
[1744574110521,2.18350089,582.27,581.67,0.31568065]
[1744574110723,2.18350089,582.26,581.67,0.31568065]
[1744574111018,2.18350089,582.25,581.67,0.31568065]
[1744574111217,2.18350089,582.24,581.67,0.31568065]
[1744574111422,2.18350089,582.23,581.67,0.31568065]
[1744574111618,0.225,582.72,581.67,0.31568065]
[1744574111821,2.49695059,582.71,581.67,0.31568065]
[1744574112017,2.18896602,582.7,581.67,0.31568065]
[1744574112220,2.18896602,582.69,581.67,0.31568065]
[1744574112419,2.18896602,582.68,581.67,0.31568065]
[1744574112625,2.18896602,582.67,581.67,0.31568065]
[1744574112825,2.18896602,582.66,581.67,0.31568065]
[1744574113126,2.18896602,582.65,581.67,0.31568065]
[1744574113320,0.69571542,582.64,581.67,0.31568065]
[1744574113520,2.18944744,582.63,581.67,0.31568065]
[1744574113719,2.18944744,582.62,581.67,0.31568065]
[1744574113926,2.18944744,582.61,581.68,0.31560496]
[1744574114122,2.18944744,582.6,581.67,0.31560496]
[1744574114320,2.18944744,582.59,581.68,0.31560496]
[1744574114524,2.18944744,582.58,581.67,0.31560496]
[1744574114723,2.18944744,582.57,581.68,0.65943662]
[1744574114920,2.18944744,582.56,581.69,0.6594307]
[1744574115126,2.18944744,582.55,581.7,0.65942479]
[1744574115326,2.18944744,582.54,581.71,0.34381392]
[1744574115627,2.18930372,582.53,581.72,0.31557676]
[1744574115837,2.18930372,582.52,581.72,0.31557676]
[1744574116025,2.18930372,582.51,581.73,0.572]
[1744574116226,2.18930372,582.5,581.74,0.31557676]
[1744574116431,2.18930372,582.49,581.74,0.31557676]
[1744574116630,2.18930372,582.48,581.74,0.31557676]
[1744574116826,2.18930372,582.47,581.74,0.31557676]
[1744574117028,2.18930372,582.46,581.74,0.31557676]
[1744574117226,2.18881395,582.45,581.74,0.31557676]
[1744574117426,2.18881395,582.44,581.74,0.31557676]
[1744574117636,2.18880704,582.43,581.74,0.31557676]
[1744574117829,2.18853143,582.42,581.74,0.31557676]
[1744574118026,2.18853143,582.41,581.74,0.31557676]
[1744574118230,2.18853143,582.4,581.74,0.31557676]
[1744574118531,0.225,582.72,581.74,0.31557676]
[1744574118732,2.1881901,582.71,581.74,0.31557676]
[1744574118929,2.1881901,582.7,581.74,0.31557676]
[1744574119228,2.1881901,582.69,581.74,0.31557676]
[1744574119431,2.1881901,582.68,581.74,0.31557676]
[1744574119627,2.1881901,582.67,581.74,0.31557676]
[1744574119831,2.1881901,582.66,581.74,0.31557676]
[1744574120134,2.1881901,582.65,581.74,0.31557676]
[1744574120333,2.1881901,582.64,581.74,0.31557676]
[1744574120534,2.1881901,582.63,581.74,0.31557676]
[1744574120733,2.1881901,582.62,581.74,0.31557676]
[1744574120930,2.1881901,582.61,581.74,0.31557676]
[1744574121135,2.1881901,582.6,581.74,0.31557676]
[1744574121329,2.1881901,582.59,581.74,0.31557676]
[1744574121533,2.1881901,582.58,581.74,0.31557676]
[1744574121735,2.1881901,582.57,581.74,0.31557676]
[1744574122037,2.1881901,582.56,581.74,0.31557676]
[1744574122237,2.1881901,582.55,581.74,0.31557676]
[1744574122537,2.1881901,582.54,581.74,0.31557676]
[1744574122731,2.1881901,582.53,581.74,0.31557676]
[1744574122936,2.1881901,582.52,581.75,0.5]
[1744574123136,2.1881901,582.51,581.76,0.31557676]
[1744574123336,2.1881901,582.5,581.76,0.31557676]
[1744574123637,2.1881901,582.49,581.76,0.31557676]
[1744574123838,2.1881901,582.48,581.76,0.31557676]
[1744574124037,2.1881901,582.47,581.76,0.31557676]
[1744574124237,2.1881901,582.46,581.76,0.31557676]
[1744574124438,2.1881901,582.45,581.76,0.31557676]
[1744574124636,2.1881901,582.44,581.76,0.31557676]
[1744574124834,2.1884926,582.43,581.76,0.31557676]
[1744574125035,2.1884926,582.42,581.76,0.31557676]
[1744574125239,2.1884926,582.41,581.76,0.31557676]
[1744574125434,2.1884926,582.4,581.76,0.31557676]
[1744574125634,2.1884926,582.39,581.76,0.31557676]
[1744574125835,2.1884926,582.38,581.76,0.31557676]
[1744574126035,2.1884926,582.37,581.76,0.31557676]
[1744574126239,2.1884926,582.36,581.76,0.31557676]
[1744574126539,0.225,582.72,581.77,0.31558783]
[1744574126740,2.19064862,582.71,581.76,0.31558783]
[1744574126941,2.19064862,582.7,581.77,0.31558783]
[1744574127137,2.19071078,582.69,581.78,0.31558783]
[1744574127339,2.19071078,582.68,581.78,0.31558783]
[1744574127634,2.19071078,582.67,581.78,0.31558783]
[1744574127839,2.19071078,582.66,581.78,0.31558783]
[1744574128036,2.19071078,582.65,581.78,0.31558783]
[1744574128241,2.19071078,582.64,581.79,0.34376665]
[1744574128442,2.19071078,582.63,581.8,0.31558783]
[1744574128643,2.19071078,582.62,581.8,0.31558783]
[1744574128943,2.19071078,582.61,581.81,0.34375483]
[1744574129143,2.19071078,582.6,581.82,0.31558783]
[1744574129344,2.19071078,582.59,581.83,0.34374301]
[1744574129545,2.19071078,582.58,581.84,0.31558783]
[1744574129744,2.19071078,582.57,581.85,0.3437312]
[1744574129945,2.19071078,582.56,581.86,0.31558783]
[1744574130139,2.19071078,582.55,581.87,0.34371938]
[1744574130339,2.19071078,582.54,581.88,0.31558783]
[1744574130645,2.19231381,582.53,581.88,1.00258783]
[1744574130846,2.19231381,582.52,581.89,0.31558783]
[1744574131042,2.19231381,582.51,581.89,0.31558783]
[1744574131243,2.19231381,582.5,581.89,0.31558783]
[1744574131444,2.19231381,582.49,581.89,0.31558783]
[1744574131640,2.19231381,582.48,581.89,0.31558783]
[1744574131941,2.19231381,582.47,581.89,0.31558783]
[1744574132141,2.19231381,582.46,581.89,0.31558783]
[1744574132342,2.19231381,582.45,581.89,0.31558783]
[1744574132544,2.19231381,582.44,581.9,0.571]
[1744574132738,0.29887535,583.38,581.91,0.31558783]
[1744574132941,0.34284147,583.36,581.91,0.31558783]
[1744574133142,2.50136673,583.35,581.91,0.31558783]
[1744574133342,0.3428591,583.33,581.91,0.31558783]
[1744574133543,2.50136673,583.32,581.91,0.31558783]
[1744574133743,0.34287673,583.3,581.91,0.31558783]
[1744574133941,2.50136673,583.29,581.91,0.31558783]
[1744574134144,0.34289437,583.27,581.91,0.31558783]
[1744574134345,2.19340611,583.26,581.92,0.31555133]
[1744574134548,0.342912,583.24,581.91,0.31555133]
[1744574134746,2.50135874,583.23,581.92,0.31555133]
[1744574135047,0.34292964,583.21,581.93,0.31555133]
[1744574135248,2.19340611,583.2,581.93,0.31555133]
[1744574135452,2.84430014,583.19,581.94,0.31555133]
[1744574135646,2.84430602,583.18,581.91,0.31555133]
[1744574135848,2.8443119,583.17,581.92,0.31555133]
[1744574136148,2.50135874,583.16,581.91,0.31555133]
[1744574136348,2.84432367,583.15,581.92,0.31555133]
[1744574136546,2.50135874,583.14,581.91,0.31555133]
[1744574136747,2.84433543,583.13,581.91,0.31555133]
[1744574136947,2.84434131,583.12,581.91,0.31555133]
[1744574137144,2.50135874,583.11,581.91,0.31555133]
[1744574137348,2.50135874,583.1,581.91,0.31555133]
[1744574137549,2.50135874,583.1,581.9,0.571]
[1744574137550,2.19340611,583.09,581.9,0.571]
[1744574137742,2.19340611,583.08,581.9,0.571]
[1744574137944,2.19340611,583.07,581.9,0.571]
[1744574138142,2.19340611,583.06,581.91,0.34369576]
[1744574138348,2.19340611,583.05,581.91,0.34369576]
[1744574138548,2.19340611,583.04,581.91,0.34369576]
[1744574138745,2.19340611,583.03,581.91,0.34369576]